bitfinex/quotes_ETHUSD_20230102
["timestamp","ask_amount","ask_price","bid_price","bid_amount"]
[1672652212008,0.6878452,1220.8,1220.7,3.0641]
[1672652212216,0.6878452,1220.8,1220.7,7.0]
[1672652212449,0.6878452,1220.8,1220.7,7.0641]
[1672652213636,0.6878452,1220.8,1220.7,3.0641]
[1672652213848,0.6878452,1220.8,1220.7,3.0]
[1672652214060,0.6878452,1220.8,1220.7,7.0]
[1672652214275,0.6878452,1220.8,1220.7,7.0641]
[1672652214952,0.6878452,1220.8,1220.7,9.61583]
[1672652216343,0.6878452,1220.8,1220.7,3.0641]
[1672652216555,5.6878452,1220.8,1220.6,18.5173]
[1672652216809,5.6898452,1220.8,1220.6,18.5173]
[1672652216961,5.6898452,1220.8,1220.7,4.0]
[1672652217908,5.6898452,1220.8,1220.7,7.0]
[1672652218121,5.6898452,1220.8,1220.7,7.0641]
[1672652221477,5.6898452,1220.8,1220.7,3.0641]
[1672652221726,5.6898452,1220.8,1220.7,3.0]
[1672652222144,5.6898452,1220.8,1220.7,7.0]
[1672652222361,5.6898452,1220.8,1220.7,7.0641]
[1672652222532,0.6898452,1220.8,1220.7,7.0641]
[1672652222746,0.6878452,1220.8,1220.7,7.0641]
[1672652223638,5.6878452,1220.8,1220.7,3.0641]
[1672652223853,5.6898452,1220.8,1220.7,3.0]
[1672652227486,5.6898452,1220.8,1220.7,7.0]
[1672652227697,5.6898452,1220.8,1220.7,7.0641]
[1672652230190,5.6898452,1220.8,1220.7,9.17502551]
[1672652230390,5.6898452,1220.8,1220.7,7.31648382]
[1672652230610,5.6898452,1220.8,1220.7,13.829007]
[1672652230761,5.6898452,1220.8,1220.7,9.33848382]
[1672652231131,5.6898452,1220.8,1220.7,13.829007]
[1672652231347,5.6898452,1220.8,1220.7,34.36190814]
[1672652231655,5.6898452,1220.8,1220.7,48.49553335]
[1672652231809,5.6898452,1220.8,1220.7,23.91947335]
[1672652232017,5.6898452,1220.8,1220.7,19.42895017]
[1672652232458,0.6898452,1220.8,1220.7,19.42895017]
[1672652232661,0.6878452,1220.8,1220.7,19.42895017]
[1672652234265,5.6878452,1220.8,1220.7,19.42895017]
[1672652234597,5.6898452,1220.8,1220.7,19.42895017]
[1672652239272,5.6898452,1220.8,1220.7,15.28008903]
[1672652239483,5.6898452,1220.8,1220.7,9.33487822]
[1672652240575,5.6898452,1220.8,1220.7,13.48373936]
[1672652240764,5.6918452,1220.8,1220.7,21.67565936]
[1672652240964,5.6918452,1220.8,1220.7,21.67575936]
[1672652240965,0.6898452,1220.8,1220.7,21.67575936]
[1672652241170,0.6878452,1220.8,1220.7,21.67575936]
[1672652241386,0.6878452,1220.8,1220.7,18.9365063]
[1672652243323,0.6878452,1220.8,1220.7,27.1285263]
[1672652243543,0.6878452,1220.8,1220.7,18.9365063]
[1672652244795,5.6878452,1220.8,1220.7,18.9365063]
[1672652245121,5.6898452,1220.8,1220.7,18.9365063]
[1672652246237,5.6898452,1220.8,1220.7,9.33487822]
[1672652250063,5.6898452,1220.8,1220.7,25.71891822]
[1672652250430,5.6898452,1220.8,1220.7,21.67575936]
[1672652251298,5.6898452,1220.8,1220.7,9.33487822]
[1672652254369,5.6898452,1220.8,1220.7,29.86777936]
[1672652254683,5.6898452,1220.8,1220.7,28.8100273]
[1672652254828,5.6898452,1220.8,1220.7,20.6180073]
[1672652255782,0.6898452,1220.8,1220.7,20.6180073]
[1672652255995,0.6878452,1220.8,1220.7,20.61446999]
[1672652256932,0.6878452,1220.8,1220.7,36.99850999]
[1672652257404,0.6878452,1220.8,1220.7,28.80648999]
[1672652258044,0.6878452,1220.8,1220.7,20.61446999]
[1672652258570,5.6878452,1220.8,1220.7,9.33134091]
[1672652258734,5.6898452,1220.8,1220.7,9.33134091]
[1672652259138,5.6898452,1220.8,1220.7,3.30934091]
[1672652259350,5.6898452,1220.8,1220.7,3.24524091]
[1672652259784,5.6898452,1220.8,1220.7,7.24524091]
[1672652259997,5.6898452,1220.8,1220.7,7.30934091]
[1672652260270,5.6898452,1220.8,1220.7,3.30934091]
[1672652260579,5.6898452,1220.8,1220.7,3.24524091]
[1672652260740,5.6898452,1220.8,1220.7,7.24524091]
[1672652260925,5.6898452,1220.8,1220.7,7.30934091]
[1672652262455,5.6898452,1220.8,1220.7,15.50136091]
[1672652262986,5.6898452,1220.8,1220.7,17.43436622]
[1672652263146,5.6898452,1220.8,1220.7,13.39120736]
[1672652265243,5.6898452,1220.8,1220.7,15.41320736]
[1672652267610,5.6898452,1220.8,1220.7,13.48020205]
[1672652268341,5.6898452,1220.8,1220.7,5.33134091]
[1672652268867,5.6898452,1220.8,1220.7,9.33134091]
[1672652274856,5.6898452,1220.8,1220.7,7.30934091]
[1672652276550,5.6898452,1220.8,1220.7,7.30667036]
[1672652278337,5.6898452,1220.8,1220.7,15.49869036]
[1672652278544,5.6898452,1220.8,1220.7,26.79332773]
[1672652279106,5.6898452,1220.8,1220.7,18.60130773]
[1672652279728,5.6898452,1220.8,1220.7,10.40928773]
[1672652280616,5.6898452,1220.8,1220.7,18.60130773]
[1672652281221,5.6898452,1220.8,1220.7,10.40928773]
[1672652282293,5.6898452,1220.8,1220.7,7.30667036]
[1672652282889,5.6898452,1220.8,1220.7,6.50667036]
[1672652283630,5.6898452,1220.8,1220.7,2.50667036]
[1672652283844,5.6898452,1220.8,1220.7,2.44257036]
[1672652284447,5.6898452,1220.8,1220.7,2.19018654]
[1672652284820,6.46742972,1220.8,1220.7,2.19018654]
[1672652285726,5.6898452,1220.8,1220.7,2.19018654]
[1672652288027,7.7118452,1220.8,1220.7,2.19018654]
[1672652288239,9.7338452,1220.8,1220.6,0.0641]
[1672652288465,2.022,1220.7,1220.5,14.0641]
[1672652288674,5.0,1220.6,1220.5,14.0641]
[1672652288905,5.002,1220.6,1220.5,10.0641]
[1672652289724,5.002,1220.6,1220.5,13.0641]
[1672652290710,5.7108,1220.6,1220.5,3.0641]
[1672652290932,5.7108,1220.6,1220.5,3.0]
[1672652291758,5.002,1220.6,1220.5,3.0]
[1672652292597,5.002,1220.6,1220.5,7.0]
[1672652292788,5.002,1220.6,1220.5,7.0641]
[1672652293714,5.002,1220.6,1220.5,3.0641]
[1672652293917,5.002,1220.6,1220.5,3.0]
[1672652307285,5.004,1220.6,1220.5,3.0]
[1672652307513,5.002,1220.6,1220.5,3.0]
[1672652309947,5.7089,1220.6,1220.5,3.0]
[1672652310103,0.7089,1220.6,1220.4,3.0641]
[1672652310309,5.0,1220.5,1220.4,7.0]
[1672652310573,5.0,1220.5,1220.4,0.0641]
[1672652310574,5.002,1220.5,1220.4,0.0641]
[1672652310764,5.002,1220.5,1220.3,13.7527]
[1672652310956,5.002,1220.5,1220.3,17.7527]
[1672652311172,5.002,1220.5,1220.4,4.0]
[1672652311817,5.002,1220.5,1220.4,7.0]
[1672652312043,5.002,1220.5,1220.4,7.0641]
[1672652312621,5.002,1220.5,1220.4,3.0641]
[1672652312829,5.002,1220.5,1220.4,3.0]
[1672652313057,5.002,1220.5,1220.4,7.0]
[1672652313271,5.002,1220.5,1220.4,3.0641]
[1672652313606,5.002,1220.5,1220.4,7.0]
[1672652313810,5.002,1220.5,1220.4,7.0641]
[1672652315155,5.002,1220.5,1220.4,7.06098838]
[1672652317351,5.002,1220.5,1220.4,3.06098838]
[1672652317472,5.002,1220.5,1220.4,6.99688838]
[1672652317680,5.002,1220.5,1220.4,7.06098838]
[1672652320456,5.002,1220.5,1220.4,3.06098838]
[1672652320681,5.002,1220.5,1220.4,6.99688838]
[1672652320995,5.002,1220.5,1220.4,7.06098838]
[1672652321162,5.002,1220.5,1220.4,3.06098838]
[1672652321372,5.002,1220.5,1220.4,2.99688838]
[1672652321805,5.002,1220.5,1220.4,6.99688838]
[1672652322011,5.002,1220.5,1220.4,7.06098838]
[1672652329258,5.002,1220.5,1220.4,3.06098838]
[1672652329628,5.002,1220.5,1220.4,2.99688838]
[1672652329834,5.5086,1220.5,1220.4,2.99688838]
[1672652330153,5.5086,1220.5,1220.4,6.99688838]
[1672652330302,5.5086,1220.5,1220.4,3.06098838]
[1672652330513,5.5086,1220.5,1220.4,2.99688838]
[1672652330936,5.5086,1220.5,1220.4,6.99688838]
[1672652331146,5.5086,1220.5,1220.4,3.06098838]
[1672652331352,5.5086,1220.5,1220.4,2.99688838]
[1672652331626,7.5306,1220.5,1220.3,13.7527]
[1672652333984,7.5306,1220.5,1220.3,17.7527]
[1672652334613,7.5306,1220.5,1220.3,13.7527]
[1672652335496,7.5326,1220.5,1220.3,13.7527]
[1672652335868,7.5326,1220.5,1220.3,17.7527]
[1672652336667,7.5326,1220.5,1220.3,13.7527]
[1672652337202,7.5326,1220.5,1220.3,13.74951923]
[1672652337346,7.5326,1220.5,1220.3,17.74951923]
[1672652337892,7.5326,1220.5,1220.3,13.74951923]
[1672652344915,7.5326,1220.5,1220.3,17.74951923]
[1672652345594,7.024,1220.4,1220.3,17.74951923]
[1672652345800,7.026,1220.4,1220.3,20.74951923]
[1672652345967,7.026,1220.4,1220.3,16.74951923]
[1672652349889,3.47814,1220.6,1220.3,16.74951923]
[1672652350070,2.011,1220.4,1220.3,16.74951923]
[1672652351924,7.011,1220.4,1220.3,16.74951923]
[1672652352502,7.011,1220.4,1220.3,3.0641]
[1672652352503,9.035,1220.4,1220.3,3.0641]
[1672652352662,10.3451,1220.4,1220.3,3.0]
[1672652353289,10.3451,1220.4,1220.2,3.0641]
[1672652353498,10.3451,1220.4,1220.2,3.0]
[1672652353499,2.024,1220.3,1220.2,3.0]
[1672652353709,7.024,1220.3,1220.2,3.0]
[1672652357547,7.024,1220.3,1220.1,18.6528]
[1672652358447,7.024,1220.3,1220.1,14.6528]
[1672652358661,7.024,1220.3,1220.1,18.6528]
[1672652358872,7.024,1220.3,1220.2,3.0]
[1672652359348,7.024,1220.3,1220.2,7.0]
[1672652359560,7.024,1220.3,1220.2,3.0641]
[1672652359865,7.024,1220.3,1220.2,3.0]
[1672652362716,5.0,1220.3,1220.2,3.0]
[1672652365074,5.0,1220.3,1220.2,7.0]
[1672652365342,5.0,1220.3,1220.2,7.0641]
[1672652365711,5.0,1220.3,1220.2,3.0641]
[1672652365923,5.0,1220.3,1220.2,3.0]
[1672652371332,5.0,1220.3,1220.2,7.0]
[1672652371487,5.0,1220.3,1220.2,7.0641]
[1672652372658,5.0,1220.3,1220.2,9.22938]
[1672652372894,5.0,1220.3,1220.2,9.47842756]
[1672652382768,5.0,1220.3,1220.2,9.22604374]
[1672652386783,5.0,1220.3,1220.2,7.06076374]
[1672652388945,0.066,1220.4,1220.2,7.06076374]
[1672652389148,0.002,1220.4,1220.2,21.31636374]
[1672652389289,8.2247,1220.5,1220.3,4.0]
[1672652389498,13.81841725,1220.5,1220.3,4.0]
[1672652389861,5.0,1220.4,1220.2,21.31646374]
[1672652390287,5.0,1220.4,1220.2,17.31646374]
[1672652392221,5.0,1220.4,1220.2,21.46532488]
[1672652392432,5.0,1220.4,1220.3,14.63964504]
[1672652392644,5.0,1220.4,1220.3,13.23596114]
[1672652392962,5.0,1220.4,1220.3,13.48834496]
[1672652393175,5.0,1220.4,1220.3,7.31648382]
[1672652395376,5.0,1220.4,1220.3,9.33948382]
[1672652395695,5.0,1220.4,1220.3,12.18298713]
[1672652397387,5.0,1220.4,1220.3,11.93060331]
[1672652398847,5.0,1220.4,1220.3,18.67077103]
[1672652399057,5.0,1220.4,1220.3,14.20298713]
[1672652399319,5.066,1220.5,1220.3,14.20298713]
[1672652399484,5.0,1220.5,1220.4,11.046]
[1672652399693,5.0,1220.5,1220.4,15.0358171]
[1672652400740,5.0,1220.5,1220.4,13.0128171]
[1672652402672,5.0,1220.5,1220.4,13.26520092]
[1672652405992,4.99733844,1220.5,1220.4,21.45923092]
[1672652406430,4.99733844,1220.5,1220.4,29.65326092]
[1672652407042,4.99733844,1220.5,1220.4,21.45923092]
[1672652407252,4.99733844,1220.5,1220.4,25.60809206]
[1672652407462,4.99733844,1220.5,1220.4,33.80212206]
[1672652407690,4.99733844,1220.5,1220.4,25.60809206]
[1672652408941,4.99733844,1220.5,1220.4,17.41406206]
[1672652409257,4.99733844,1220.5,1220.4,13.26520092]
[1672652411295,4.99733844,1220.5,1220.4,25.60809206]
[1672652411723,4.99733844,1220.5,1220.4,17.41406206]
[1672652412773,4.99933844,1220.5,1220.4,17.41396206]
[1672652413097,4.99933844,1220.5,1220.4,17.41406206]
[1672652413098,4.99733844,1220.5,1220.4,17.41406206]
[1672652413706,4.99933844,1220.5,1220.4,17.41396206]
[1672652413899,4.99733844,1220.5,1220.4,17.41406206]
[1672652424131,0.066,1220.6,1220.4,17.41406206]
[1672652424341,8.0755,1220.7,1220.5,4.0]
[1672652424489,8.0755,1220.7,1220.6,3.0]
[1672652424698,0.7538452,1220.8,1220.6,3.0]
[1672652424925,0.6878452,1220.8,1220.6,3.0]
[1672652425138,5.0,1220.7,1220.6,3.0]
[1672652431021,5.0,1220.7,1220.6,2.99720646]
[1672652431237,0.7538452,1220.8,1220.6,2.99720646]
[1672652431444,0.6878452,1220.8,1220.6,2.99720646]
[1672652432221,5.0,1220.7,1220.6,2.99720646]
[1672652445415,0.7538452,1220.8,1220.6,2.99720646]
[1672652445787,0.6878452,1220.8,1220.6,2.99720646]
[1672652446625,5.0,1220.7,1220.6,2.99720646]
[1672652452014,5.0,1220.7,1220.6,2.99415317]
[1672652452373,0.7538452,1220.8,1220.6,2.99415317]
[1672652452583,0.6878452,1220.8,1220.6,2.99415317]
[1672652453452,5.0,1220.7,1220.6,2.99415317]
[1672652458078,4.99732139,1220.7,1220.6,2.99415317]
[1672652459534,0.7538452,1220.8,1220.6,2.99415317]
[1672652459750,0.6878452,1220.8,1220.6,2.99415317]
[1672652460636,5.0,1220.7,1220.6,2.99415317]
[1672652469748,10.72867595,1221.0,1220.6,2.99415317]
[1672652469961,2.6383,1220.9,1220.7,4.0]
[1672652470942,2.6383,1220.9,1220.6,7.05825317]
[1672652472533,5.0,1220.7,1220.6,7.05825317]
[1672652472708,5.0,1220.7,1220.6,9.47400411]
[1672652473600,5.0,1220.7,1220.6,5.47400411]
[1672652473969,5.0,1220.7,1220.6,9.47400411]
[1672652477111,5.0,1220.7,1220.6,5.47400411]
[1672652477532,5.0,1220.7,1220.6,9.47400411]
[1672652478412,5.0,1220.7,1220.6,5.47400411]
[1672652478630,5.0,1220.7,1220.6,3.05825317]
[1672652478847,5.0,1220.7,1220.6,2.99415317]
[1672652479690,0.066,1220.8,1220.6,6.99415317]
[1672652479852,2.6383,1220.9,1220.6,7.05825317]
[1672652480062,5.0,1220.7,1220.6,3.05825317]
[1672652480273,5.002,1220.7,1220.6,2.99415317]
[1672652480499,5.0,1220.7,1220.6,2.99415317]
[1672652482199,11.17186114,1220.7,1220.5,0.0641]
[1672652482414,5.0,1220.6,1220.2,33.5454]
[1672652482628,2.008,1220.5,1220.3,4.0]
[1672652483541,5.0,1220.4,1220.3,4.0]
[1672652483758,5.0,1220.4,1220.3,7.75454]
[1672652484020,5.0,1220.4,1220.3,10.81864]
[1672652489958,5.0,1220.4,1220.3,10.81559334]
[1672652491053,4.99619249,1220.4,1220.3,10.81559334]
[1672652491242,4.99619249,1220.4,1220.3,7.06105334]
[1672652492808,4.99619249,1220.4,1220.3,6.53478434]
[1672652496274,0.066,1220.5,1220.3,6.53478434]
[1672652496493,9.9138,1220.6,1220.4,3.0]
[1672652496678,11.62006611,1220.6,1220.4,3.0]
[1672652497112,3.72926611,1220.6,1220.4,3.0]
[1672652497326,5.0,1220.5,1220.4,3.0]
[1672652514977,5.0,1220.5,1220.4,2.99659955]
[1672652515978,0.066,1220.6,1220.4,2.99659955]
[1672652516140,10.2885,1220.7,1220.4,2.99659955]
[1672652516679,5.0,1220.5,1220.4,2.99659955]
[1672652522775,0.066,1220.6,1220.4,2.99659955]
[1672652522986,10.2885,1220.7,1220.4,2.99659955]
[1672652523821,5.0,1220.5,1220.4,2.99659955]
[1672652528639,5.0,1220.5,1220.4,2.88683955]
[1672652531789,5.002,1220.5,1220.4,2.88683955]
[1672652532055,5.0,1220.5,1220.4,2.88683955]
[1672652534357,0.066,1220.6,1220.4,2.88683955]
[1672652534584,10.2885,1220.7,1220.4,2.88683955]
[1672652534737,11.98588,1220.7,1220.4,2.88683955]
[1672652534940,5.0,1220.5,1220.4,2.88683955]
[1672652541074,0.066,1220.6,1220.4,2.88683955]
[1672652541296,11.98588,1220.7,1220.4,2.88683955]
[1672652541878,5.0,1220.5,1220.4,2.88683955]
[1672652551340,5.0,1220.5,1220.4,2.88309829]
[1672652556865,2.09,1220.6,1220.4,2.88309829]
[1672652557010,7.37814914,1220.6,1220.4,2.88309829]
[1672652557699,5.0,1220.5,1220.4,2.88309829]
[1672652557912,7.024,1220.5,1220.3,14.833]
[1672652558606,7.024,1220.5,1220.3,18.833]
[1672652569418,7.024,1220.5,1220.4,4.0]
[1672652571945,7.024,1220.5,1220.4,3.99729542]
[1672652572160,5.0,1220.5,1220.4,3.99729542]
[1672652572571,5.0,1220.5,1220.3,18.833]
[1672652572945,5.0,1220.4,1220.3,18.833]
[1672652573151,5.0,1220.4,1220.3,21.833]
[1672652582148,5.0,1220.4,1220.3,17.833]
[1672652582362,0.066,1220.5,1220.3,17.833]
[1672652582533,0.6154,1220.6,1220.3,17.833]
[1672652582748,4.76426114,1220.6,1220.3,17.833]
[1672652582963,5.0,1220.4,1220.3,18.833]
[1672652585941,5.0,1220.4,1220.3,14.833]
[1672652590826,5.0,1220.4,1220.3,18.833]
[1672652591714,5.0,1220.4,1220.3,14.833]
[1672652592293,5.0,1220.4,1220.3,0.0641]
[1672652592294,9.85716114,1220.4,1220.3,0.0641]
[1672652592564,14.73866114,1220.4,1220.0,22.9008]
[1672652592762,2.024,1220.3,1220.0,22.9649]
[1672652592965,5.0,1220.1,1220.0,22.9649]
[1672652593230,5.0,1220.1,1220.0,18.2067]
[1672652593607,5.0,1220.1,1220.0,21.2067]
[1672652594396,5.0,1220.1,1220.0,21.2038295]
[1672652599234,5.0,1220.1,1220.0,17.2038295]
[1672652601820,5.0,1220.1,1220.0,3.0641]
[1672652602055,5.0,1220.1,1220.0,3.0]
[1672652602696,5.0,1220.1,1219.9,22.33390768]
[1672652602697,11.67946114,1220.1,1219.9,22.33390768]
[1672652602852,10.40286114,1220.0,1219.9,22.33390768]
[1672652603070,15.40286114,1220.0,1219.9,22.33390768]
[1672652603429,11.40286114,1220.0,1219.9,22.33390768]
[1672652603637,12.60040725,1220.0,1219.9,22.33390768]
[1672652604588,12.59740076,1220.0,1219.9,22.33390768]
[1672652605172,13.21310076,1220.0,1219.9,22.33390768]
[1672652606693,12.59740076,1220.0,1219.9,22.33390768]
[1672652607263,14.62140076,1220.0,1219.9,22.33390768]
[1672652608877,18.62140076,1220.0,1219.9,22.33390768]
[1672652609545,25.56440076,1220.0,1219.9,3.1031667]
[1672652609853,29.18010076,1220.0,1219.9,3.0390667]
[1672652612000,27.15610076,1220.0,1219.9,3.0390667]
[1672652612211,22.23710076,1220.0,1219.9,3.0390667]
[1672652618738,17.23710076,1220.0,1219.9,3.0390667]
[1672652619828,22.23710076,1220.0,1219.9,3.0390667]
[1672652624524,22.23710076,1220.0,1219.9,2.7890667]
[1672652624734,22.72856206,1220.0,1219.9,2.7890667]
[1672652625662,20.70456206,1220.0,1219.9,2.7890667]
[1672652625787,15.70456206,1220.0,1219.9,2.7890667]
[1672652626859,20.70456206,1220.0,1219.9,2.7890667]
[1672652635675,17.71556206,1220.0,1219.9,2.7890667]
[1672652636732,22.71556206,1220.0,1219.9,2.7890667]
[1672652637781,18.71556206,1220.0,1219.9,2.7890667]
[1672652638021,13.70456206,1220.0,1219.9,2.7890667]
[1672652638216,13.08886206,1220.0,1219.9,2.7890667]
[1672652639318,11.06486206,1220.0,1219.9,2.7890667]
[1672652648998,11.06486206,1220.0,1219.9,2.78697523]
[1672652652139,6.06486206,1220.0,1219.9,2.78697523]
[1672652653230,11.06486206,1220.0,1219.9,2.78697523]
[1672652656147,15.06486206,1220.0,1219.9,2.78697523]
[1672652657310,11.06486206,1220.0,1219.9,2.78697523]
[1672652657691,15.06486206,1220.0,1219.9,2.78697523]
[1672652658113,11.06486206,1220.0,1219.9,2.78697523]
[1672652659173,6.91900741,1220.0,1219.9,2.78697523]
[1672652659387,7.2497232,1220.0,1219.9,2.78697523]
[1672652659708,10.09592552,1220.0,1219.9,2.78697523]
[1672652660110,13.09592552,1220.0,1219.9,2.78697523]
[1672652662474,10.09592552,1220.0,1219.9,2.78697523]
[1672652662840,13.59592552,1220.0,1219.9,2.78697523]
[1672652663045,10.72506346,1220.0,1219.9,2.78697523]
[1672652663262,7.22506346,1220.0,1219.9,2.78697523]
[1672652663626,11.22506346,1220.0,1219.9,2.78697523]
[1672652663992,12.22506346,1220.0,1219.9,2.78697523]
[1672652666937,9.37886114,1220.0,1219.9,2.78697523]
[1672652673886,13.37886114,1220.0,1219.9,2.78697523]
[1672652674098,9.37886114,1220.0,1219.9,2.78697523]
[1672652680496,5.23,1220.0,1219.9,2.78697523]
[1672652680712,5.0,1220.0,1219.9,4.79997523]
[1672652680971,5.0,1220.0,1219.9,11.87843969]
[1672652681188,5.0,1220.0,1219.9,15.94253969]
[1672652681609,5.0,1220.0,1219.9,11.41023191]
[1672652683017,5.0,1220.0,1219.9,11.40631849]
[1672652685764,5.0,1220.0,1219.9,11.65870231]
[1672652685956,5.0,1220.0,1219.9,11.40631849]
[1672652689588,5.0,1220.0,1219.9,21.21501009]
[1672652689800,5.0,1220.0,1219.9,25.97967123]
[1672652694439,5.0,1220.0,1219.9,21.44736345]
[1672652696098,5.0,1220.0,1219.9,25.97967123]
[1672652696309,5.0,1220.0,1219.9,25.36387123]
[1672652696521,5.0,1220.0,1219.9,20.83156345]
[1672652698133,0.066,1220.1,1219.9,25.36387123]
[1672652698306,25.5769,1220.5,1220.0,25.994]
[1672652698498,25.5109,1220.5,1220.1,16.96]
[1672652698699,25.5109,1220.5,1220.2,4.0]
[1672652698932,25.5109,1220.5,1220.2,18.946]
[1672652699162,5.0,1220.3,1220.2,19.0101]
[1672652699481,5.002,1220.3,1220.2,19.01]
[1672652699691,5.0,1220.3,1220.2,19.0101]
[1672652700301,5.0,1220.3,1220.2,20.93634838]
[1672652700682,5.0,1220.3,1220.2,15.0101]
[1672652704109,5.0,1220.3,1220.2,15.00657465]
[1672652705102,0.066,1220.4,1220.2,15.00657465]
[1672652705316,25.5109,1220.5,1220.2,15.00657465]
[1672652705643,7.5109,1220.5,1220.3,4.0]
[1672652706044,5.0,1220.4,1220.3,4.0]
[1672652706254,5.0,1220.4,1220.2,15.25895847]
[1672652712179,5.0,1220.4,1220.2,15.00657465]
[1672652713041,5.0,1220.4,1220.3,4.0]
[1672652713944,5.0,1220.4,1220.2,15.00657465]
[1672652715258,5.0,1220.4,1220.2,15.25138532]
[1672652717726,5.0,1220.4,1220.2,14.80793532]
[1672652719037,7.5769,1220.5,1220.2,14.80793532]
[1672652719248,8.93153,1220.5,1220.2,14.80793532]
[1672652720036,5.0,1220.3,1220.2,14.80793532]
[1672652720246,5.0,1220.3,1220.2,17.80793532]
[1672652723675,5.0,1220.3,1220.2,14.80793532]
[1672652724703,5.0,1220.3,1220.2,14.5555515]
[1672652732965,5.58486513,1220.3,1220.2,14.5555515]
[1672652734034,5.58093943,1220.3,1220.2,14.5555515]
[1672652735109,6.54563337,1220.3,1220.2,14.5555515]
[1672652735863,5.58093943,1220.3,1220.2,14.5555515]
[1672652743665,5.58093943,1220.3,1220.2,0.0641]
[1672652743869,5.58093943,1220.3,1220.1,3.0]
[1672652744274,0.58486513,1220.3,1220.1,3.0]
[1672652745215,5.0,1220.2,1220.1,3.0]
[1672652748976,5.0,1220.2,1220.0,27.3958]
[1672652749816,5.0,1220.2,1220.0,27.3458]
[1672652752493,5.0,1220.2,1220.0,29.01037701]
[1672652753136,5.0,1220.2,1220.0,27.3458]
[1672652756133,0.65086513,1220.3,1220.0,27.3458]
[1672652756497,0.58486513,1220.3,1220.0,27.3458]
[1672652757437,5.0,1220.1,1220.0,27.3458]
[1672652757754,5.0,1220.1,1220.0,7.0141]
[1672652763162,0.066,1220.2,1220.0,7.0141]
[1672652763431,0.58486513,1220.3,1220.0,21.9375]
[1672652763432,5.0,1220.1,1220.0,21.9375]
[1672652764670,5.0,1220.1,1220.0,17.9875]
[1672652765273,5.002,1220.1,1220.0,14.9874]
[1672652765483,5.0,1220.1,1220.0,14.9875]
[1672652766861,5.9066,1220.1,1220.0,14.9875]
[1672652767097,5.9086,1220.1,1220.0,14.9874]
[1672652767305,5.9066,1220.1,1220.0,14.9875]
[1672652767998,5.0,1220.1,1220.0,14.9875]
[1672652772100,5.0,1220.1,1220.0,0.0641]
[1672652772306,5.0,1220.1,1219.9,2.78306181]
[1672652772521,5.0,1220.0,1219.9,2.78306181]
[1672652772765,5.0,1220.0,1219.9,5.78306181]
[1672652772982,5.0,1220.0,1219.9,5.84716181]
[1672652774462,5.5066,1220.0,1219.9,2.84716181]
[1672652774677,5.5066,1220.0,1219.9,2.78097091]
[1672652776652,9.65546114,1220.0,1219.9,2.78097091]
[1672652776864,9.88546114,1220.0,1219.9,2.78097091]
[1672652784309,11.90946114,1220.0,1219.9,2.78097091]
[1672652787295,12.52516114,1220.0,1219.9,2.78097091]
[1672652787502,11.90946114,1220.0,1219.9,2.78097091]
[1672652794074,13.93346114,1220.0,1219.9,2.78097091]
[1672652794384,17.93346114,1220.0,1219.9,2.78097091]
[1672652795176,17.93346114,1220.0,1219.9,2.77815153]
[1672652800691,13.93346114,1220.0,1219.9,2.77815153]
[1672652801508,17.93346114,1220.0,1219.9,2.77815153]
[1672652801923,13.93346114,1220.0,1219.9,2.77815153]
[1672652802605,17.93346114,1220.0,1219.9,2.77815153]
[1672652803342,13.93346114,1220.0,1219.9,2.77815153]
[1672652804827,17.93346114,1220.0,1219.9,2.77815153]
[1672652806149,13.93346114,1220.0,1219.9,2.77815153]
[1672652808234,11.90946114,1220.0,1219.9,2.77815153]
[1672652809557,17.91946114,1220.0,1219.9,2.77815153]
[1672652809701,13.91946114,1220.0,1219.9,2.77815153]
[1672652811133,8.91946114,1220.0,1219.9,2.77815153]
[1672652812168,13.91946114,1220.0,1219.9,2.77815153]
[1672652812900,13.92146114,1220.0,1219.9,2.77815153]
[1672652813103,13.91946114,1220.0,1219.9,2.77815153]
[1672652813758,17.91946114,1220.0,1219.9,2.77815153]
[1672652814684,13.91946114,1220.0,1219.9,2.77815153]
[1672652818366,13.91946114,1220.0,1219.9,2.77587305]
[1672652823221,11.90946114,1220.0,1219.9,2.77587305]
[1672652825739,9.88546114,1220.0,1219.9,2.77587305]
[1672652828262,10.47453874,1220.0,1219.9,2.77587305]
[1672652829933,5.47453874,1220.0,1219.9,2.77587305]
[1672652830742,10.47453874,1220.0,1219.9,2.77587305]
[1672652839564,10.47453874,1220.0,1219.9,2.77368696]
[1672652839829,14.47453874,1220.0,1219.9,2.77368696]
[1672652840424,10.47453874,1220.0,1219.9,2.77368696]
[1672652840639,11.09023874,1220.0,1219.9,2.77368696]
[1672652841413,10.47453874,1220.0,1219.9,2.77368696]
[1672652842617,12.97453874,1220.0,1219.9,2.77368696]
[1672652843101,10.47453874,1220.0,1219.9,2.77368696]
[1672652845728,9.96793874,1220.0,1219.9,2.77368696]
[1672652846206,9.96793874,1220.0,1219.9,6.77368696]
[1672652846418,9.96793874,1220.0,1219.9,6.83778696]
[1672652846818,9.96793874,1220.0,1219.9,2.83778696]
[1672652847029,9.96793874,1220.0,1219.9,2.77368696]
[1672652860105,9.96793874,1220.0,1219.9,2.77138718]
[1672652869651,9.96793874,1220.0,1219.9,6.77138718]
[1672652869865,9.96793874,1220.0,1219.9,2.83548718]
[1672652870006,9.96793874,1220.0,1219.9,2.77138718]
[1672652871010,9.96793874,1220.0,1219.9,6.27138718]
[1672652871215,9.96793874,1220.0,1219.9,6.33548718]
[1672652871378,9.96793874,1220.0,1219.9,2.83548718]
[1672652871588,9.96793874,1220.0,1219.9,2.77138718]
[1672652873949,9.96793874,1220.0,1219.9,6.77138718]
[1672652874103,9.96793874,1220.0,1219.9,2.83548718]
[1672652874314,9.96793874,1220.0,1219.9,2.77138718]
[1672652875364,9.96793874,1220.0,1219.9,6.77138718]
[1672652875575,9.96793874,1220.0,1219.9,6.83548718]
[1672652876558,9.96793874,1220.0,1219.9,2.83548718]